bitfinex-derivatives/quotes_BTCF0:USTF0_20210102
["timestamp","ask_amount","ask_price","bid_price","bid_amount"]
[1609624488857,2.0,31774.0,31773.0,0.00040149]
[1609624489261,2.57532087,31774.0,31773.0,0.00040149]
[1609624489658,2.57532087,31774.0,31772.0,0.17141]
[1609624489859,2.57532087,31774.0,31773.0,0.00040147]
[1609624490661,1.57532087,31774.0,31772.0,0.15141]
[1609624490861,1.57532087,31774.0,31767.0,3.564]
[1609624491162,1.57532087,31774.0,31768.0,0.00040144]
[1609624491463,0.18043158,31769.0,31768.0,0.00040144]
[1609624491662,1.18043158,31769.0,31768.0,0.00040144]
[1609624492464,1.18043158,31769.0,31767.0,3.564]
[1609624492665,1.18043158,31769.0,31762.0,1.0]
[1609624492864,1.18043158,31769.0,31768.0,0.13323142]
[1609624493066,1.18043158,31769.0,31768.0,0.13283]
[1609624493267,1.18043158,31769.0,31768.0,0.13323144]
[1609624494066,0.00976892,31774.0,31768.0,5.27623144]
[1609624494267,0.00976892,31774.0,31768.0,0.13323144]
[1609624494666,0.00976892,31774.0,31773.0,11.0243]
[1609624495166,0.00976892,31774.0,31773.0,11.0247013]
[1609624495368,0.00976892,31774.0,31773.0,11.06338791]
[1609624495567,0.00976892,31774.0,31773.0,11.24381949]
[1609624495768,0.0108,31780.0,31773.0,11.24381949]
[1609624496168,0.0108,31780.0,31774.0,0.03908485]
[1609624496672,0.0108,31780.0,31779.0,1.0]
[1609624497070,0.0108,31780.0,31779.0,1.14901]
[1609624497270,0.0108,31780.0,31779.0,1.18809287]
[1609624497471,0.0108,31780.0,31779.0,1.36852445]
[1609624502677,0.0108,31780.0,31779.0,6.36852445]
[1609624503278,3.00974874,31800.0,31779.0,6.36852445]
[1609624503477,3.00974874,31800.0,31799.0,0.18043158]
[1609624503877,3.00974874,31800.0,31799.0,0.18083272]
[1609624504278,3.0,31800.0,31799.0,0.18083272]
[1609624504477,2.6326,31800.0,31799.0,0.18083272]
[1609624504779,2.6326,31800.0,31799.0,1.18083272]
[1609624505678,2.2932,31800.0,31799.0,1.18083272]
[1609624506779,2.2932,31800.0,31799.0,6.18083272]
[1609624508683,2.2932,31800.0,31799.0,0.18083272]
[1609624510785,2.2932,31800.0,31799.0,6.18083272]
[1609624512786,2.2932,31800.0,31799.0,1.18083272]
[1609624514790,2.2932,31800.0,31799.0,6.18083272]
[1609624516692,2.2932,31800.0,31799.0,0.18083272]
[1609624518693,2.2932,31800.0,31799.0,6.18083272]
[1609624520797,2.2932,31800.0,31799.0,1.18083272]
[1609624522500,2.2932,31800.0,31799.0,4.99803272]
[1609624522700,2.2932,31800.0,31799.0,3.99803272]
[1609624523702,2.2932,31800.0,31799.0,4.03668781]
[1609624525904,2.2932,31800.0,31799.0,4.1139997]
[1609624526707,2.2932,31800.0,31799.0,5.1139997]
[1609624528707,2.2932,31800.0,31799.0,4.1139997]
[1609624529609,3.2932,31800.0,31799.0,0.2967997]
[1609624529813,3.8584,31796.0,31782.0,4.5745]
[1609624530013,1.0,31795.0,31779.0,0.14901]
[1609624530211,3.5842,31787.0,31783.0,0.11640296]
[1609624530410,1.0,31786.0,31780.0,0.03907438]
[1609624530611,1.0,31786.0,31784.0,0.0390769]
[1609624531011,1.0,31786.0,31780.0,0.03907941]
[1609624531211,1.0,31786.0,31785.0,0.03908091]
[1609624531411,1.0,31786.0,31781.0,0.03908172]
[1609624531712,0.18043158,31782.0,31780.0,0.03908233]
[1609624531913,1.6834,31781.0,31780.0,0.00039959]
[1609624532114,1.6834,31781.0,31779.0,0.14901]
[1609624532311,1.0,31781.0,31780.0,0.00039961]
[1609624532513,1.0,31781.0,31780.0,0.13153961]
[1609624532715,1.0,31781.0,31780.0,0.13114]
[1609624533115,1.0,31781.0,31780.0,0.13153961]
[1609624533317,6.2869,31781.0,31780.0,0.13153961]
[1609624536919,6.2869,31781.0,31780.0,0.13193921]
[1609624537121,6.2869,31781.0,31780.0,0.1315396]
[1609624537420,1.0,31781.0,31780.0,0.1315396]
[1609624539523,0.18043158,31782.0,31781.0,4.6951]
[1609624539724,1.18043158,31782.0,31781.0,4.6951]
[1609624539923,1.18043158,31782.0,31781.0,4.69549963]
[1609624540524,0.18043158,31782.0,31781.0,4.69549963]
[1609624541123,0.18043158,31782.0,31781.0,0.00039963]
[1609624541525,1.18043158,31782.0,31781.0,0.00039963]
[1609624542423,0.18043158,31782.0,31781.0,0.00039963]
[1609624542624,1.18043158,31782.0,31781.0,0.00039963]
[1609624545327,1.18043158,31782.0,31774.0,1.0]
[1609624545527,1.18043158,31782.0,31781.0,0.12415]
[1609624545728,4.8013,31782.0,31781.0,0.12415]
[1609624545930,4.8013,31782.0,31781.0,0.12454966]
[1609624546130,4.8013,31782.0,31781.0,0.12415]
[1609624546329,4.98173158,31782.0,31781.0,0.12415]
[1609624546730,5.98173158,31782.0,31781.0,0.12415]
[1609624548435,6.07733158,31782.0,31768.0,4.34943]
[1609624548633,5.07733158,31782.0,31768.0,4.34943]
[1609624548833,5.07733158,31782.0,31769.0,0.00039976]
[1609624550236,0.18043158,31770.0,31769.0,0.00039976]
[1609624550436,1.18043158,31770.0,31769.0,0.00039976]
[1609624552841,2.18043158,31770.0,31769.0,0.00039976]
[1609624553039,5.78753158,31770.0,31769.0,0.00039976]
[1609624554040,5.78753158,31770.0,31759.0,0.1157]
[1609624554240,0.18043158,31761.0,31759.0,0.1157]
[1609624554442,1.18043158,31761.0,31759.0,0.1157]
[1609624554641,1.18043158,31761.0,31760.0,0.03039984]
[1609624554840,1.17043158,31761.0,31760.0,0.03039984]
[1609624555739,1.16043158,31761.0,31760.0,0.03039984]
[1609624555939,1.87053158,31761.0,31760.0,0.03039984]
[1609624556240,1.16043158,31761.0,31760.0,0.03039984]
[1609624557641,1.16043158,31761.0,31760.0,0.06910673]
[1609624557841,0.15043158,31761.0,31760.0,0.06910673]
[1609624558643,1.15043158,31761.0,31760.0,0.06910673]
[1609624559443,1.15043158,31761.0,31760.0,0.06870689]
[1609624559642,1.14043158,31761.0,31760.0,0.06910673]
[1609624568155,6.19613158,31761.0,31760.0,0.03039984]
[1609624568758,7.19613158,31761.0,31760.0,0.03039984]
[1609624572664,2.14043158,31761.0,31760.0,0.03039984]
[1609624572866,1.14043158,31761.0,31760.0,3.74199984]
[1609624573269,1.14043158,31761.0,31760.0,3.78071437]
[1609624574379,1.14043158,31761.0,31760.0,3.96114595]
[1609624574771,0.01362575,31772.0,31760.0,3.96114595]
[1609624575170,0.01362575,31772.0,31761.0,0.03910452]
[1609624576370,0.00965023,31772.0,31770.0,0.18043158]
[1609624576571,0.1771,31778.0,31771.0,0.7454]
[1609624576770,0.1771,31778.0,31771.0,0.03910365]
[1609624576970,0.1771,31778.0,31772.0,4.62870292]
[1609624577473,0.1771,31778.0,31773.0,0.00039929]
[1609624578472,0.18043158,31774.0,31773.0,0.00039929]
[1609624578872,0.18043158,31774.0,31773.0,0.03910276]
[1609624579073,0.18043158,31774.0,31773.0,0.00039929]
[1609624579374,0.18043158,31774.0,31773.0,0.03909871]
[1609624579973,1.18043158,31774.0,31773.0,0.03909871]
[1609624580172,1.18043158,31774.0,31771.0,0.0390991]
[1609624580373,1.18043158,31774.0,31773.0,0.00039926]
[1609624580673,1.18043158,31774.0,31770.0,1.15767]
[1609624580674,1.18043158,31774.0,31771.0,0.00039928]
[1609624580973,1.18043158,31774.0,31773.0,0.00039928]
[1609624581174,1.18043158,31774.0,31772.0,0.00039928]
[1609624581473,1.18043158,31774.0,31773.0,0.00039928]
[1609624581973,1.18043158,31774.0,31771.0,0.00039928]
[1609624582174,1.18043158,31774.0,31773.0,0.00039928]
[1609624582475,1.18043158,31774.0,31771.0,0.00039928]
[1609624582676,2.18043158,31774.0,31771.0,0.00039928]
[1609624584680,1.18043158,31774.0,31771.0,0.00039928]
[1609624588782,2.18043158,31774.0,31771.0,0.00039928]
[1609624590784,1.0,31772.0,31771.0,0.00039928]
[1609624590983,2.0,31772.0,31771.0,0.00039928]
[1609624591584,2.0,31772.0,31761.0,0.00039932]
[1609624591785,2.01932243,31772.0,31771.0,0.00039932]
[1609624591984,2.01932243,31772.0,31762.0,0.00039932]
[1609624592184,2.01932243,31772.0,31771.0,0.00039932]
[1609624592585,2.01932243,31772.0,31761.0,0.00039932]
[1609624592784,2.01932243,31772.0,31771.0,0.00039932]
[1609624592986,2.01932243,31772.0,31762.0,0.00039934]
[1609624593386,2.01932243,31772.0,31761.0,0.00039934]
[1609624593587,2.01932243,31772.0,31763.0,0.00039934]
[1609624593788,2.57413737,31772.0,31762.0,0.00039934]
[1609624594088,2.57413737,31772.0,31764.0,0.00039934]
[1609624594288,2.57413737,31772.0,31763.0,0.00039934]
[1609624594488,0.18043158,31764.0,31763.0,0.00039934]
[1609624594688,1.18043158,31764.0,31761.0,0.00039934]
[1609624594888,1.18043158,31764.0,31763.0,0.00039934]
[1609624595088,1.18043158,31764.0,31762.0,0.00039937]
[1609624595389,1.18043158,31764.0,31761.0,0.00039937]
[1609624595592,1.18043158,31764.0,31763.0,0.00039937]
[1609624595891,1.18043158,31764.0,31761.0,0.00039937]
[1609624596290,1.18043158,31764.0,31763.0,0.00039937]
[1609624596492,1.18043158,31764.0,31762.0,0.00039937]
[1609624596691,1.18043158,31764.0,31763.0,0.00039937]
[1609624597194,1.18043158,31764.0,31761.0,0.00039937]
[1609624597594,1.18043158,31764.0,31763.0,0.00039937]
[1609624597795,1.18043158,31764.0,31762.0,0.00039937]
[1609624597995,1.18043158,31764.0,31763.0,0.00039937]
[1609624598496,1.18043158,31764.0,31761.0,0.00039937]
[1609624598697,2.18043158,31764.0,31761.0,0.00039937]
[1609624600706,1.18043158,31764.0,31761.0,0.00039937]
[1609624609011,1.18445996,31764.0,31761.0,0.00039937]
[1609624610613,4.5137,31763.0,31761.0,0.00039937]
[1609624610811,1.0,31762.0,31761.0,0.00039937]
[1609624612815,2.0,31762.0,31761.0,0.00039937]
[1609624614216,2.0,31762.0,31761.0,0.03911252]
[1609624614518,2.0,31762.0,31761.0,0.00039937]
[1609624614719,1.0,31762.0,31761.0,0.00039937]
[1609624614918,1.0,31762.0,31761.0,0.0391126]
[1609624615117,1.0,31762.0,31760.0,0.06911271]
[1609624615317,1.0,31762.0,31761.0,0.03911245]
[1609624618421,4.5755,31762.0,31761.0,0.03911245]
[1609624618721,5.5755,31762.0,31761.0,0.03911245]
[1609624620125,5.57952946,31762.0,31761.0,0.03911245]
[1609624624029,5.57952946,31762.0,31761.0,0.00039937]
[1609624624930,5.58567343,31762.0,31761.0,0.00039937]
[1609624625331,7.30550297,31762.0,31761.0,0.00039937]
[1609624627033,0.03,31761.0,31760.0,0.03]
[1609624627433,0.0303872,31761.0,31760.0,0.03039826]
[1609624628836,1.0303872,31761.0,31760.0,0.03039826]
[1609624629037,6.2882872,31761.0,31745.0,3.7798]
[1609624629439,6.2882872,31761.0,31746.0,0.03871969]
[1609624629638,6.2879,31761.0,31746.0,0.14509795]
[1609624630040,6.2879,31761.0,31747.0,0.03911742]
[1609624630343,0.00402704,31755.0,31747.0,0.03911742]
[1609624630744,0.18043158,31748.0,31747.0,0.03911742]
[1609624630944,1.18043158,31748.0,31747.0,0.03911742]
[1609624633747,5.43123158,31748.0,31747.0,0.03911742]
[1609624635849,1.18043158,31748.0,31747.0,0.03911742]
[1609624636950,1.18043158,31748.0,31747.0,0.00039826]
[1609624642056,0.18043158,31748.0,31747.0,4.83179826]
[1609624642756,0.18043158,31748.0,31747.0,0.00039826]
[1609624642957,6.35613158,31748.0,31747.0,0.03911891]
[1609624643156,6.35613158,31748.0,31747.0,0.00039826]
[1609624646757,7.35613158,31748.0,31747.0,0.00039826]
[1609624647157,7.36591106,31748.0,31747.0,0.00039826]
[1609624647658,7.36591106,31748.0,31746.0,0.09598]
[1609624647857,2.19021106,31748.0,31732.0,1.0]
[1609624648057,4.4658,31733.0,31732.0,1.0]
[1609624648258,5.4658,31733.0,31732.0,1.0]
[1609624648460,5.4658,31733.0,31732.0,1.03912848]
[1609624648759,5.4658,31733.0,31732.0,0.03912848]
[1609624648958,5.64623158,31733.0,31732.0,0.03912848]
[1609624649359,5.64623158,31733.0,31726.0,0.03913154]
[1609624649560,5.64623158,31733.0,31732.0,0.03913181]
[1609624649760,5.64623158,31733.0,31732.0,0.16399]
[1609624649959,5.64623158,31733.0,31732.0,0.20272339]
[1609624650160,5.64623158,31733.0,31732.0,0.20312179]
[1609624650361,1.18043158,31733.0,31732.0,0.20312179]
[1609624650560,5.44593158,31733.0,31732.0,0.1643884]
[1609624650759,6.44593158,31733.0,31732.0,0.1136884]
[1609624650961,6.44593158,31733.0,31732.0,0.1037884]
[1609624651366,6.44593158,31733.0,31725.0,0.17139]
[1609624651565,2.34312158,31733.0,31716.0,1.0]
[1609624651765,4.2013,31723.0,31716.0,1.0]
[1609624651965,1.0,31722.0,31717.0,0.03914653]
[1609624652166,5.7851,31722.0,31717.0,0.03914653]
[1609624652566,0.01378989,31732.0,31717.0,0.03914653]
[1609624652767,0.01378989,31732.0,31719.0,4.2681]
[1609624652966,0.18043158,31720.0,31719.0,4.2681]
[1609624653566,0.18043158,31720.0,31719.0,4.30724134]
[1609624653768,0.18043158,31720.0,31719.0,0.03914134]
[1609624654168,0.18043158,31720.0,31719.0,0.03874285]
[1609624654368,0.18043158,31720.0,31717.0,0.03914027]
[1609624654568,0.18043158,31720.0,31719.0,0.03914033]
[1609624654768,0.18043158,31720.0,31719.0,1.0]
[1609624654968,0.18043158,31720.0,31719.0,1.03874307]
[1609624655167,0.18043158,31720.0,31719.0,1.03914156]
[1609624656770,0.18043158,31720.0,31719.0,0.03914156]
[1609624657070,0.18043158,31720.0,31719.0,0.00039849]
[1609624657271,0.18043158,31720.0,31717.0,0.03914257]
[1609624657474,0.18043158,31720.0,31719.0,0.00039851]
[1609624657673,0.18043158,31720.0,31718.0,0.00039851]
[1609624657872,0.18043158,31720.0,31719.0,0.00039851]
[1609624658173,0.18043158,31720.0,31718.0,0.03914196]
[1609624658483,0.18043158,31720.0,31719.0,0.00039851]
[1609624659078,0.18043158,31720.0,31717.0,0.03914207]
[1609624659274,0.18043158,31720.0,31719.0,0.00039851]
[1609624659474,0.18043158,31720.0,31718.0,0.00039851]
[1609624659777,0.18043158,31720.0,31717.0,0.03914207]
[1609624659976,0.18043158,31720.0,31719.0,0.00039851]
[1609624660377,0.18043158,31720.0,31717.0,0.03914207]
[1609624660576,0.18043158,31720.0,31719.0,0.00039851]
[1609624660776,1.18043158,31720.0,31718.0,0.00039854]
[1609624661176,1.18043158,31720.0,31717.0,0.0391421]
[1609624661378,4.3435,31718.0,31717.0,0.03874356]
[1609624661576,5.3435,31718.0,31716.0,0.11459]
[1609624661977,5.3435,31718.0,31717.0,0.11871859]
[1609624662377,5.3435,31718.0,31717.0,0.1589]
[1609624662576,5.3435,31718.0,31717.0,0.1513]
[1609624664980,1.0,31718.0,31717.0,0.1513]
[1609624666580,1.0,31718.0,31717.0,0.1516987]
[1609624666780,2.0,31718.0,31717.0,0.1516987]
[1609624666981,2.0,31718.0,31717.0,0.15209738]
[1609624668082,2.0,31718.0,31704.0,4.58]
[1609624668481,2.0,31718.0,31705.0,0.03916237]
[1609624668781,1.0,31718.0,31705.0,0.03916237]
[1609624668981,0.18043158,31706.0,31705.0,0.17686237]
[1609624670686,4.61483158,31706.0,31705.0,0.17686237]
[1609624672687,5.61483158,31706.0,31705.0,0.17686237]
[1609624672887,0.18043158,31706.0,31705.0,0.17686237]
[1609624673088,0.18043158,31706.0,31705.0,4.75426237]
[1609624673487,0.00399609,31726.0,31705.0,4.75426237]
[1609624674090,1.0,31728.0,31706.0,0.03915259]
[1609624674789,1.0,31728.0,31721.0,1.0]
[1609624674990,0.18043158,31722.0,31721.0,1.0]
[1609624675390,0.18043158,31722.0,31721.0,1.00039857]
[1609624675894,0.18043158,31722.0,31721.0,1.51289857]
[1609624676796,0.18043158,31722.0,31721.0,0.51289857]
[1609624679299,1.18043158,31722.0,31721.0,0.51289857]
[1609624679799,1.18043158,31722.0,31721.0,0.55164775]
[1609624680199,1.18043158,31722.0,31721.0,0.03914775]
[1609624681300,1.18043158,31722.0,31717.0,0.03914732]
[1609624683102,0.18043158,31718.0,31717.0,0.03914732]
[1609624683302,1.18043158,31718.0,31717.0,0.03914732]
[1609624686316,5.05063158,31718.0,31717.0,0.03914732]
[1609624686910,5.05063158,31718.0,31716.0,0.12638]
[1609624687309,5.05063158,31718.0,31705.0,0.1377]
[1609624687510,5.05063158,31718.0,31703.0,1.0]
[1609624687711,5.05063158,31718.0,31706.0,0.03915492]
[1609624687912,5.05063158,31718.0,31706.0,0.17097]
[1609624688112,5.05063158,31718.0,31707.0,0.03876267]
[1609624688312,5.05063158,31718.0,31707.0,0.03915889]
[1609624688712,1.0,31715.0,31707.0,0.03915889]
[1609624688916,1.0,31714.0,31707.0,0.03915889]
[1609624689113,0.18043158,31708.0,31707.0,0.03915889]
[1609624689313,1.18043158,31708.0,31707.0,0.03915889]
[1609624691618,1.18043158,31708.0,31707.0,0.00039622]
[1609624692718,2.18043158,31708.0,31707.0,0.00039622]
[1609624692919,2.27393158,31708.0,31707.0,0.00039622]
[1609624694122,2.27393158,31708.0,31706.0,0.01897]
[1609624694321,2.27393158,31708.0,31701.0,4.8034]
[1609624694522,2.27393158,31708.0,31689.0,1.0]
[1609624694725,5.51813158,31708.0,31702.0,0.00039633]
[1609624695122,5.51813158,31708.0,31692.0,0.15408]
[1609624695323,0.18043158,31693.0,31692.0,0.15408]
[1609624695723,0.18043158,31693.0,31692.0,0.15447643]
[1609624695924,0.18043158,31693.0,31692.0,0.19326047]
[1609624696325,0.18043158,31693.0,31692.0,0.15447643]
[1609624700032,1.18043158,31693.0,31692.0,0.15447643]
[1609624700232,1.18043158,31693.0,31692.0,0.15408]
[1609624700631,1.18043158,31693.0,31692.0,0.1544764]
[1609624700833,1.18043158,31693.0,31692.0,0.15487281]
[1609624701735,6.16683158,31693.0,31692.0,0.15487281]
[1609624703238,6.16683158,31693.0,31670.0,4.175]
[1609624703439,6.16683158,31693.0,31691.0,0.10699]
[1609624703639,1.18043158,31693.0,31691.0,0.10699]
[1609624703839,4.9984,31692.0,31691.0,0.10699]
[1609624704040,5.9984,31692.0,31691.0,0.10699]
[1609624704339,6.0921,31692.0,31691.0,0.10699]
[1609624704541,6.0921,31692.0,31668.0,5.1722]
[1609624705041,6.0921,31692.0,31669.0,0.00039655]
[1609624705240,6.0921,31692.0,31669.0,0.11528655]
[1609624705440,0.18043158,31670.0,31669.0,0.11528655]
[1609624711549,0.18043158,31670.0,31669.0,0.15408665]
[1609624712750,0.18043158,31670.0,31669.0,1.15408665]
[1609624718958,0.17043158,31670.0,31669.0,1.15408665]
[1609624719557,4.26273158,31670.0,31669.0,1.15408665]
[1609624720759,4.26273158,31670.0,31669.0,0.15408665]
[1609624722861,4.26273158,31670.0,31669.0,0.11528655]
[1609624723261,5.26273158,31670.0,31669.0,0.11528655]
[1609624723662,5.26273158,31670.0,31669.0,0.15409585]
[1609624724363,4.26273158,31670.0,31669.0,0.15409585]
[1609624724764,0.17043158,31670.0,31669.0,0.15409585]
[1609624725163,1.17043158,31670.0,31669.0,0.15409585]
[1609624725364,5.85443158,31670.0,31669.0,0.15409585]
[1609624725764,5.85443158,31670.0,31669.0,0.11528655]
[1609624725965,5.85443158,31670.0,31662.0,1.13136]
[1609624726364,5.85443158,31670.0,31663.0,0.0392108]
[1609624726765,1.0,31665.0,31663.0,0.0392108]
[1609624726964,1.0,31664.0,31663.0,0.0392108]
[1609624727564,1.18043158,31664.0,31663.0,0.0392108]
[1609624727965,1.93623158,31664.0,31663.0,0.0392108]
[1609624728164,1.93623158,31664.0,31663.0,0.00039673]
[1609624729067,1.18043158,31664.0,31663.0,0.00039673]
[1609624729266,1.18043158,31664.0,31655.0,4.1779]
[1609624729466,0.18043158,31656.0,31641.0,0.03882324]
[1609624729665,1.0,31655.0,31643.0,3.7714]
[1609624729866,1.0,31655.0,31643.0,0.15525]
[1609624730068,1.0,31655.0,31644.0,0.03922259]
[1609624730867,1.0,31655.0,31644.0,1.03922259]
[1609624731266,0.18043158,31656.0,31645.0,0.03922241]
[1609624731469,0.18043158,31646.0,31645.0,0.03922241]
[1609624732871,0.18043158,31646.0,31645.0,0.11687212]
[1609624733471,0.18043158,31646.0,31644.0,0.1168689]
[1609624733678,0.18043158,31646.0,31645.0,0.03922118]
[1609624734178,0.18043158,31646.0,31644.0,0.11686997]
[1609624734576,0.18043158,31646.0,31645.0,0.03922138]
[1609624734776,0.18043158,31646.0,31645.0,1.03922138]
[1609624735177,0.18043158,31646.0,31645.0,1.11687114]
[1609624735378,1.0,31665.0,31645.0,5.99547114]
[1609624735577,1.0,31665.0,31645.0,6.17590272]
[1609624735779,1.0,31665.0,31646.0,0.11686148]
[1609624736779,0.30581993,31677.0,31664.0,1.0]
[1609624736981,0.2961718,31677.0,31664.0,1.14644]
[1609624737178,0.2961718,31677.0,31665.0,0.03921031]
[1609624737380,0.2922,31677.0,31665.0,0.03921031]
[1609624737580,0.18043158,31666.0,31665.0,0.03921031]
[1609624738481,0.18043158,31666.0,31665.0,0.00039672]
[1609624738683,0.18043158,31666.0,31665.0,0.74879672]
[1609624741183,0.18043158,31666.0,31665.0,0.78760797]
[1609624741384,0.18043158,31666.0,31665.0,0.74879672]
[1609624742784,0.2922,31677.0,31665.0,0.74879672]
[1609624742985,0.2922,31677.0,31665.0,0.78760298]
[1609624743186,0.2922,31677.0,31666.0,0.03920056]
[1609624743385,0.1771,31679.0,31666.0,0.03920056]
[1609624743587,0.18043158,31671.0,31669.0,0.18043158]
[1609624743987,0.18043158,31671.0,31670.0,0.03919534]
[1609624744585,0.2785,31688.0,31670.0,0.03919534]
[1609624744786,0.2785,31688.0,31670.0,6.03919534]
[1609624744987,0.2785,31688.0,31680.0,0.7035]
[1609624745187,0.2785,31688.0,31673.0,0.14332]
[1609624745387,0.2785,31688.0,31683.0,3.7207]
[1609624745587,0.13492,31691.0,31685.0,0.18043158]
[1609624745987,0.13492,31691.0,31686.0,0.00039649]
[1609624746186,0.1771,31694.0,31686.0,0.00039649]
[1609624747587,0.1771,31694.0,31690.0,0.18043158]
[1609624747988,0.1771,31694.0,31691.0,0.00039484]
[1609624748389,0.2912,31702.0,31691.0,0.00039484]
[1609624748589,0.2912,31702.0,31696.0,5.2155]
[1609624748991,0.2912,31702.0,31697.0,0.00039481]
[1609624749190,0.36570952,31710.0,31697.0,0.11105481]
[1609624749592,0.18043158,31702.0,31701.0,0.18043158]
[1609624749993,0.18043158,31702.0,31701.0,3.93402637]
[1609624751293,0.356,31710.0,31701.0,3.93402637]
[1609624751493,0.356,31710.0,31705.0,0.18043158]
[1609624751692,0.356,31710.0,31705.0,0.34575158]
[1609624751893,0.18043158,31711.0,31705.0,0.34575158]
[1609624752492,0.18043158,31711.0,31710.0,0.5338]
[1609624752892,0.18043158,31711.0,31710.0,1.5338]
[1609624753595,0.18043158,31711.0,31710.0,1.71423158]
[1609624754203,0.18043158,31711.0,31710.0,1.0]
[1609624754802,0.18043158,31711.0,31705.0,0.16532]
[1609624755599,0.18043158,31706.0,31705.0,0.16532]
[1609624756900,0.18043158,31706.0,31704.0,0.18043158]
[1609624757100,0.18043158,31706.0,31705.0,4.2036]
[1609624757300,0.18043158,31706.0,31705.0,4.32227]
[1609624757700,0.29571804,31718.0,31705.0,4.32227]
[1609624758801,0.286,31718.0,31705.0,4.32227]
[1609624759502,0.286,31718.0,31708.0,0.18043158]
[1609624759705,0.286,31718.0,31705.0,0.11867]
[1609624761407,0.286,31718.0,31708.0,5.0714]
[1609624761608,0.18043158,31709.0,31708.0,5.0714]
[1609624762109,0.18043158,31709.0,31705.0,0.11867]
[1609624762511,0.18043158,31709.0,31702.0,4.7525]
[1609624762710,0.18043158,31709.0,31706.0,0.12955474]
[1609624762910,0.18043158,31709.0,31708.0,1.0]
[1609624763510,0.18043158,31709.0,31708.0,1.7026]
[1609624766317,0.18043158,31709.0,31708.0,1.70299474]
[1609624766817,0.18043158,31709.0,31708.0,0.70299474]
[1609624768121,0.18043158,31709.0,31708.0,0.00039474]
[1609624768724,0.18043158,31709.0,31707.0,0.00039477]
[1609624768925,0.18043158,31709.0,31708.0,1.0]
[1609624769126,0.18043158,31709.0,31708.0,1.00039479]
[1609624770328,1.18043158,31709.0,31708.0,1.00039479]
[1609624770731,0.18043158,31709.0,31708.0,1.0]
[1609624770930,0.18043158,31709.0,31706.0,0.12916]
[1609624771130,0.18043158,31709.0,31700.0,4.6471]
[1609624771532,0.18043158,31709.0,31701.0,0.00039485]
[1609624771533,1.0,31708.0,31701.0,0.00039485]
[1609624771733,0.18043158,31702.0,31701.0,0.00039485]
[1609624772331,1.18043158,31702.0,31701.0,0.00039485]
[1609624773332,1.18043158,31702.0,31698.0,0.0003949]
[1609624775036,1.18043158,31702.0,31698.0,0.03918484]
[1609624777038,0.02,31700.0,31698.0,0.03918484]
[1609624778038,0.02,31700.0,31698.0,0.0003949]
[1609624778639,0.02,31700.0,31693.0,0.03918837]
[1609624779040,0.02,31700.0,31699.0,0.00039493]
[1609624779238,0.02,31700.0,31694.0,0.00039493]
[1609624779438,0.02,31700.0,31699.0,0.00039493]
[1609624779639,0.02,31700.0,31695.0,0.00039493]
[1609624780038,0.02,31700.0,31693.0,0.03918837]
[1609624780238,0.02,31700.0,31696.0,0.00039493]
[1609624780440,0.02,31700.0,31694.0,0.00039493]
[1609624780739,0.02,31700.0,31693.0,0.00039493]
[1609624780939,0.02,31700.0,31695.0,0.00039493]
[1609624781241,0.02,31700.0,31693.0,0.00039493]
[1609624781541,0.02,31700.0,31696.0,0.00039493]
[1609624781740,0.18043158,31697.0,31694.0,0.00039493]
[1609624781941,1.18043158,31697.0,31694.0,0.00039493]
[1609624782139,1.18043158,31697.0,31693.0,0.00039493]
[1609624782341,1.18043158,31697.0,31695.0,0.00039493]
[1609624782539,1.18043158,31697.0,31694.0,0.00039493]
[1609624782842,1.18043158,31697.0,31693.0,0.00039493]
[1609624783041,0.18043158,31697.0,31693.0,0.00039493]
[1609624783241,0.18043158,31697.0,31696.0,5.1393]
[1609624783540,0.18043158,31697.0,31696.0,5.13969493]
[1609624784842,0.18043158,31697.0,31696.0,6.13969493]
[1609624788952,0.18043158,31697.0,31696.0,5.13969493]
[1609624791051,0.18043158,31697.0,31696.0,0.00039493]
[1609624791457,0.18043158,31697.0,31691.0,4.7212]
[1609624791855,0.02,31700.0,31692.0,0.00039491]
[1609624793857,0.18043158,31693.0,31692.0,0.00039491]
[1609624796861,0.18043158,31693.0,31692.0,1.00039491]
[1609624797260,0.18043158,31693.0,31692.0,1.03918235]
[1609624798262,0.18043158,31693.0,31692.0,5.76658235]
[1609624802867,0.18043158,31693.0,31692.0,4.76658235]
[1609624804772,0.18043158,31693.0,31692.0,5.76658235]
[1609624818786,0.18043158,31693.0,31692.0,4.76658235]
[1609624819988,0.18043158,31693.0,31692.0,0.03918235]
[1609624820388,0.18043158,31693.0,31688.0,0.03918581]
[1609624820788,1.0,31692.0,31687.0,0.12904]
[1609624820989,1.0,31692.0,31689.0,0.03918821]
[1609624821188,1.0,31692.0,31688.0,0.00039461]
[1609624821589,0.46376253,31691.0,31690.0,0.00039463]
[1609624821788,1.46376253,31691.0,31689.0,0.00039463]
[1609624821989,1.46376253,31691.0,31690.0,0.00039463]
[1609624822190,1.46376253,31691.0,31682.0,0.03879914]
[1609624822590,1.46376253,31691.0,31682.0,0.00039466]
[1609624822789,1.0,31687.0,31683.0,0.00039466]
[1609624822991,1.0,31686.0,31683.0,0.00039466]
[1609624823189,1.0,31686.0,31681.0,0.00039466]
[1609624823390,1.0,31685.0,31684.0,0.00039466]
[1609624823589,1.0,31687.0,31682.0,0.00039466]
[1609624823791,1.0,31687.0,31684.0,4.2026]
[1609624823992,1.0,31687.0,31684.0,0.00039466]
[1609624824192,5.42683158,31685.0,31680.0,0.14039]
[1609624824592,5.42683158,31685.0,31672.0,6.0355]
[1609624824792,5.42683158,31685.0,31681.0,0.00039466]
[1609624824993,5.42683158,31685.0,31681.0,0.1215]
[1609624825194,5.42683158,31685.0,31682.0,0.00039466]
[1609624825392,6.42683158,31685.0,31682.0,0.00039466]
[1609624825593,6.42683158,31685.0,31681.0,0.1215]
[1609624825793,6.42683158,31685.0,31683.0,0.00039466]
[1609624825992,0.03,31684.0,31682.0,0.00039466]
[1609624826192,0.03,31684.0,31681.0,0.1215]
[1609624826493,0.03,31684.0,31682.0,0.00039466]
[1609624830298,0.59640482,31683.0,31682.0,0.00039466]
[1609624831198,1.57698609,31683.0,31681.0,0.1215]
[1609624831499,1.57698609,31683.0,31682.0,0.00039471]
[1609624831699,1.57698609,31683.0,31681.0,0.1015]
[1609624832099,2.73298353,31683.0,31676.0,1.0]
[1609624832300,0.18043158,31677.0,31676.0,1.0]
[1609624832499,1.18043158,31677.0,31676.0,1.0]
[1609624832798,1.18043158,31677.0,31676.0,0.00039473]
[1609624833300,1.18043158,31677.0,31673.0,0.00039473]